fUSD/lending_fUSD_20250811
["ID","MTS","AMOUNT","RATE_DAILY","PERIOD"]
[378461572,1754874643119,-1974.45758811,0.00018944,2]
[378461573,1754874643128,-11813.34020037,0.00018945,2]
[378461574,1754874643138,-1974.45758811,0.00018945,2]
[378461575,1754874643147,-14849.19744311,0.00018946,2]
[378461576,1754874643156,-1054.11499017,0.00018946,2]
[378461577,1754874643165,-214.13251255,0.00018946,2]
[378461578,1754874643175,-14849.19744311,0.00018947,2]
[378461579,1754874643184,-5432.42539354,0.00018947,2]
[378461581,1754874643194,-1958.30825818,0.00018948,2]
[378461583,1754874643204,-5432.42539354,0.00018948,2]
[378461585,1754874643213,-195.72580529,0.00018949,2]
[378461586,1754874643222,-7189.05295778,0.00018949,2]
[378461587,1754874643232,-1627.91073778,0.00018949,5]
[378461588,1754874643241,-500.0,0.00018949,2]
[378461589,1754874643251,-500.0,0.00018949,2]
[378461590,1754874643260,-500.0,0.00018949,2]
[378461591,1754874643270,-500.0,0.00018949,2]
[378461592,1754874643279,-500.0,0.00018949,2]
[378461593,1754874643288,-500.0,0.00018949,2]
[378461594,1754874643298,-500.0,0.00018949,2]
[378461595,1754874643307,-500.0,0.00018949,2]
[378461596,1754874643317,-2742.93019003,0.0001895,2]
[378461597,1754874643326,-893.0,0.0001895,2]
[378461598,1754874643336,-1171.0,0.0001895,2]
[378461599,1754874643345,-4144.0,0.0001895,2]
[378461600,1754874643354,-6080.0,0.0001895,2]
[378461601,1754874643363,-716.0,0.0001895,2]
[378461602,1754874643373,-1974.45758811,0.0001895,2]
[378461603,1754874643382,-13521.57586566,0.00018951,2]
[378461604,1754874643391,-527.58213739,0.00018951,2]
[378461605,1754874643401,-2800.12803956,0.00018952,2]
[378461606,1754874643411,-2800.12803956,0.00018952,2]
[378461607,1754874643420,-2628.4079046,0.00018952,2]
[378461608,1754874643430,-2367.44334656,0.00018952,2]
[378461609,1754874643440,-1974.45758811,0.00018952,2]
[378461610,1754874643450,-214.13251254,0.00018952,2]
[378461611,1754874643459,-995.9782515,0.00018953,2]
[378461612,1754874643468,-214.13251255,0.00018954,2]
[378461613,1754874643478,-214.13251254,0.00018954,2]
[378461614,1754874643487,-7189.05295778,0.00018955,2]
[378461615,1754874643497,-7065.55390658,0.00018956,2]
[378461616,1754874643507,-214.13251255,0.00018957,2]
[378461617,1754874643517,-995.9782515,0.00018958,2]
[378461618,1754874643526,-195.72580529,0.00018958,2]
[378461619,1754874643536,-2628.4079046,0.00018959,2]
[378461620,1754874643545,-2367.44334656,0.00018959,2]
[378461621,1754874643555,-6563.0,0.00018959,2]
[378461622,1754874643564,-30605.0,0.00018959,2]
[378461623,1754874643575,-195.72580529,0.00018959,2]
[378461624,1754874643585,-195.72580529,0.0001896,2]
[378461625,1754874643594,-5432.42539354,0.0001896,2]
[378461626,1754874643604,-13521.57586566,0.00018961,2]
[378461627,1754874643615,-2628.4079046,0.00018961,2]
[378461628,1754874643626,-1974.45758811,0.00018962,2]
[378461629,1754874643636,-7065.55390658,0.00018963,2]
[378461630,1754874643646,-987.22879408,0.00018963,2]
[378461631,1754874643655,-11813.34020037,0.00018964,2]
[378461632,1754874643666,-527.58213739,0.00018964,2]
[378461633,1754874643675,-6433.51758911,0.00018965,2]
[378461634,1754874643685,-1974.45758811,0.00018966,2]
[378461635,1754874643697,-31052.52279528,0.00018966,2]
[378461636,1754874643707,-2800.12803956,0.00018966,2]
[378461637,1754874643717,-500.0,0.00018966,2]
[378461638,1754874643727,-13521.57586566,0.00018966,2]
[378461639,1754874643737,-214.13251255,0.00018966,2]
[378461640,1754874643747,-1158.46788724,0.00018966,2]
[378461641,1754874643757,-1054.11499017,0.00018966,2]
[378461642,1754874643767,-31052.52279528,0.00018966,2]
[378461643,1754874643776,-214.13251254,0.00018967,2]
[378461644,1754874643786,-150.0,0.00018967,2]
[378461645,1754874643795,-227.88548418,0.00018967,2]
[378461646,1754874643804,-250.0,0.00018967,2]
[378461647,1754874643813,-2742.93019003,0.00018967,2]
[378461648,1754874644042,-1054.11499017,0.00018968,2]
[378461649,1754874644053,-5432.42539354,0.00018968,2]
[378461650,1754874644064,-2367.44334656,0.00018969,2]
[378461651,1754874644074,-1895.09406094,0.00018969,2]
[378461652,1754874644086,-1974.45758811,0.0001897,2]
[378461653,1754874644096,-500.0,0.0001897,2]
[378461654,1754874644107,-500.0,0.0001897,2]
[378461655,1754874644124,-500.0,0.0001897,2]
[378461656,1754874644135,-584.38487133,0.0001897,2]
[378461657,1754874644145,-700.0,0.0001897,2]
[378461658,1754874644157,-1300.0,0.0001897,2]
[378461659,1754874644167,-1958.30825818,0.00018971,2]
[378461660,1754874644179,-7065.55390658,0.00018971,2]
[378461661,1754874644189,-2367.44334656,0.00018972,2]
[378461662,1754874644199,-1054.11499017,0.00018973,2]
[378461663,1754874644209,-585.58363503,0.00018973,2]
[378461664,1754874644219,-500.0,0.00018973,2]
[378461665,1754874644229,-500.0,0.00018973,2]
[378461666,1754874644239,-500.0,0.00018973,2]
[378461667,1754874644249,-618.32026293,0.00018973,2]
[378461668,1754874644259,-450.0,0.00018973,2]
[378461669,1754874644269,-500.0,0.00018973,2]
[378461670,1754874644280,-499.76046511,0.00018973,2]
[378461671,1754874644289,-500.0,0.00018973,2]
[378461672,1754874644299,-501.23469655,0.00018973,2]
[378461673,1754874644309,-500.0,0.00018973,2]
[378461674,1754874644320,-500.0,0.00018973,2]
[378461675,1754874644329,-500.0,0.00018973,2]
[378461676,1754874644340,-500.0,0.00018973,2]
[378461677,1754874644350,-164.67004399,0.00018973,2]
[378461678,1754874644360,-520.13451287,0.00018973,2]
[378461679,1754874644369,-500.0,0.00018973,2]
[378461680,1754874644378,-500.0,0.00018973,2]
[378461681,1754874644388,-501.04888045,0.00018973,2]
[378461682,1754874644398,-500.85260033,0.00018973,2]
[378461683,1754874644408,-500.0,0.00018973,2]
[378461684,1754874644418,-500.0,0.00018973,2]
[378461685,1754874644427,-500.0,0.00018973,2]
[378461686,1754874644437,-500.0,0.00018973,2]
[378461687,1754874644447,-500.0,0.00018973,2]
[378461688,1754874644456,-501.15843744,0.00018973,2]
[378461689,1754874644465,-500.0,0.00018973,2]
[378461690,1754874644474,-500.0,0.00018973,2]
[378461691,1754874644484,-500.0,0.00018973,2]
[378461692,1754874644494,-501.98982706,0.00018973,2]
[378461693,1754874644503,-500.7781062,0.00018973,2]
[378461694,1754874644512,-500.0,0.00018973,2]
[378461695,1754874644522,-500.0,0.00018973,2]
[378461696,1754874644531,-500.0,0.00018973,2]
[378461697,1754874644541,-500.32304322,0.00018973,2]
[378461698,1754874644550,-500.0,0.00018973,2]
[378461699,1754874644560,-500.0,0.00018973,2]
[378461700,1754874644570,-502.68818368,0.00018973,2]
[378461701,1754874644579,-500.0,0.00018973,2]
[378461702,1754874644589,-6433.51758911,0.00018974,2]
[378461703,1754874644599,-987.22879408,0.00018974,2]
[378461704,1754874644609,-1158.46788724,0.00018974,2]
[378461705,1754874644623,-987.22879408,0.00018974,2]
[378461706,1754874644633,-1974.45758811,0.00018974,2]
[378461707,1754874644642,-527.58213739,0.00018975,2]
[378461708,1754874644651,-2800.12803956,0.00018976,2]
[378461709,1754874644662,-214.13251254,0.00018976,2]
[378461710,1754874644671,-31052.52279528,0.00018976,2]
[378461711,1754874644680,-1895.09406094,0.00018977,2]
[378461712,1754874644691,-6433.51758911,0.00018979,2]
[378461713,1754874644700,-7065.55390658,0.00018979,2]
[378461714,1754874644709,-31052.52279528,0.00018979,2]
[378461715,1754874644718,-214.13251255,0.00018979,2]
[378461716,1754874644728,-350.0,0.00018981,2]
[378461717,1754874644738,-1158.46788724,0.00018981,2]
[378461718,1754874644747,-995.9782515,0.00018981,2]
[378461719,1754874644757,-7065.55390658,0.00018982,2]
[378461720,1754874644767,-7189.05295778,0.00018982,2]
[378461721,1754874644776,-1958.30825818,0.00018983,2]
[378461722,1754874644785,-195.72580529,0.00018984,2]
[378461723,1754874644795,-1958.30825818,0.00018985,2]
[378461724,1754874644804,-1895.09406094,0.00018985,2]
[378461725,1754874644813,-1974.45758811,0.00018985,2]
[378461726,1754874644824,-14849.19744311,0.00018985,2]
[378461727,1754874644834,-2742.93019003,0.00018986,2]
[378461728,1754874644843,-313.96982828,0.00018987,2]
[378461729,1754874644852,-11813.34020037,0.00018988,2]
[378461730,1754874644861,-1054.11499017,0.00018988,2]
[378461731,1754874644872,-11813.34020037,0.00018988,2]
[378461732,1754874644882,-13521.57586566,0.00018989,2]
[378461733,1754874644893,-313.96982828,0.0001899,2]
[378461734,1754874644904,-2628.4079046,0.0001899,2]
[378461735,1754874644915,-313.96982828,0.0001899,2]
[378461736,1754874644927,-2742.93019003,0.0001899,2]
[378461737,1754874644937,-11813.34020037,0.0001899,2]
[378461738,1754874644948,-1158.46788724,0.00018991,2]
[378461739,1754874644957,-31052.52279528,0.00018991,2]
[378461740,1754874644967,-995.9782515,0.00018991,2]
[378461741,1754874644976,-7189.05295778,0.00018993,2]
[378461742,1754874644985,-6433.51758911,0.00018994,2]
[378461743,1754874644995,-987.22879408,0.00018994,2]
[378461744,1754874645004,-2628.4079046,0.00018994,2]
[378461745,1754874645014,-1895.09406094,0.00018994,2]
[378461746,1754874645023,-2367.44334656,0.00018995,2]
[378461747,1754874645035,-5432.42539354,0.00018995,2]
[378461748,1754874645044,-479.31249943,0.00018996,2]
[378461749,1754874645054,-500.0,0.00018996,2]
[378461750,1754874645064,-314.91434466,0.00018996,2]
[378461751,1754874645074,-500.0,0.00018996,2]
[378461752,1754874645084,-500.0,0.00018996,2]
[378461753,1754874645093,-500.0,0.00018996,2]
[378461754,1754874645102,-511.38794533,0.00018996,2]
[378461755,1754874645112,-995.9782515,0.00018996,2]
[378461756,1754874645121,-14849.19744311,0.00018996,2]
[378461757,1754874645131,-1895.09406094,0.00018996,2]
[378461758,1754874645140,-987.22879408,0.00018997,2]
[378461759,1754874645150,-162.9660088,0.00018997,2]
[378461760,1754874645160,-500.0,0.00018997,2]
[378461761,1754874645169,-921631.19,0.00018997,2]
[378461762,1754874645180,-1158.46788724,0.00018997,2]
[378461763,1754874645190,-6433.51758911,0.00018997,2]
[378461764,1754874645200,-14849.19744311,0.00018998,2]
[378461765,1754874645209,-2742.93019003,0.00018998,2]
[378461766,1754874645219,-500.0,0.00018998,2]
[378461767,1754874645229,-1000.0,0.00018999,2]
[378461768,1754874645239,-29832.90691718,0.00018999,2]
[378461769,1754874645249,-116552.16370611,0.00018999,7]
[378461770,1754874645259,-1000.0,0.00018999,2]
[378461771,1754874645268,-1000.0,0.00018999,2]
[378461772,1754874645278,-1000.0,0.00018999,2]
[378461773,1754874645289,-214.13251254,0.00018999,2]
[378461774,1754874645298,-500.0,0.00018999,2]
[378461775,1754874645308,-500.0,0.00018999,2]
[378461776,1754874645317,-500.0,0.00018999,2]
[378461777,1754874645329,-500.0,0.00018999,2]
[378461778,1754874645339,-500.0,0.00018999,2]
[378461779,1754874645349,-500.0,0.00018999,2]
[378461780,1754874645359,-500.0,0.00018999,2]
[378461781,1754874645369,-500.0,0.00018999,2]
[378461782,1754874645379,-500.0,0.00018999,2]
[378461783,1754874645388,-500.0,0.00018999,2]
[378461784,1754874645398,-500.0,0.00018999,2]
[378461785,1754874645408,-500.0,0.00018999,2]
[378461786,1754874645417,-500.0,0.00018999,2]
[378461787,1754874645427,-500.0,0.00018999,2]
[378461788,1754874645437,-500.0,0.00018999,2]
[378461789,1754874645447,-445.55,0.00018999,2]
[378461790,1754874645456,-85049.1424913,0.00018999,2]
[378461791,1754874645466,-500.0,0.00018999,2]
[378461792,1754874645476,-490.7,0.00018999,2]
[378461793,1754874645485,-255147.4274741,0.00018999,2]
[378461795,1754874645495,-576.13534827,0.00018999,2]
[378461797,1754874645506,-211.70500488,0.00018999,7]
[378461799,1754874645517,-150.0,0.00018999,2]
[378461800,1754874645527,-197.68222047,0.00018999,2]
[378461801,1754874645537,-457.79793389,0.00018999,7]
[378461802,1754874645547,-666.0,0.00018999,2]
[378461803,1754874645557,-300.0,0.00018999,2]
[378461804,1754874645568,-300.0,0.00018999,2]
[378461805,1754874645579,-300.0,0.00018999,2]
[378461806,1754874645589,-1441884.01070081,0.00019,2]
[378461836,1754874646462,-400.0,0.00018859,2]
[378461838,1754874646472,-415.02963863,0.00018996,2]
[378461840,1754874646481,-697.24862928,0.00019,2]
[378461842,1754874646492,-1789.09,0.00019,2]
[378461847,1754874646530,-38219.7561789,0.00019,2]
[378461849,1754874646539,-40797.41171136,0.00019,2]
[378461851,1754874646548,-1216.0,0.00019,2]
[378461853,1754874646559,-527.58213739,0.00019,2]
[378461855,1754874646568,-5765584.40162809,0.00019,2]
[378461859,1754874651435,10000.0,0.00030137,120]
[378461876,1754875093386,239.96,0.00013699,2]
[378461881,1754875147366,161.9,0.00030137,120]
[378461882,1754875167615,564.54,0.00017946,2]
[378461888,1754875337186,5000.0,0.00030137,120]
[378461891,1754875491868,1000.0,0.00017894,2]
[378461892,1754875525225,4061.469356,0.000175,2]
[378461909,1754875655691,3350.80269676,0.00018,2]
[378461916,1754875816566,511.0,0.0001758,2]
[378461930,1754875832384,-170.0,0.0001801,7]
[378461931,1754875832395,-152.01,0.00018082,2]
[378461932,1754875832404,-337.63,0.00018633,2]
[378461933,1754875832415,-186.15565864,0.00018748,2]
[378461934,1754875832425,-158.91304478,0.00018758,2]
[378461935,1754875832434,-290.08375714,0.00018758,2]
[378461936,1754875832446,-151.00575699,0.00018759,2]
[378461937,1754875832455,-151.00575699,0.00018787,2]
[378461938,1754875832465,-231.28369723,0.00018799,2]
[378461939,1754875832476,-151.00575699,0.00018815,2]
[378461940,1754875832485,-158.91304478,0.00018829,2]
[378461941,1754875832495,-150.0,0.00018834,2]
[378461943,1754875832504,-150.0,0.00018837,2]
[378461944,1754875832513,-151.00575699,0.00018844,2]
[378461945,1754875832523,-1200.0,0.00018847,2]
[378461946,1754875832533,-160.0,0.00018848,2]
[378461947,1754875832543,-600.0,0.00018848,2]
[378461948,1754875832553,-793.71557736,0.00018848,2]
[378461949,1754875832562,-346.92554585,0.00018848,2]
[378461950,1754875832571,-179.81,0.00018848,2]
[378461951,1754875832581,-1277.05,0.00018857,2]
[378461952,1754875832590,-400.0,0.00018857,2]
[378461953,1754875832599,-1041.09,0.00018857,2]
[378461954,1754875832609,-580.08,0.00018857,2]
[378461955,1754875832618,-1024.97,0.00018857,2]
[378461956,1754875832628,-2755.97996169,0.00018857,2]
[378461968,1754875837994,-1902.44003831,0.00018857,2]
[378461969,1754875838004,-1351.23,0.00018857,2]
[378461970,1754875838013,-400.0,0.00018857,2]
[378461971,1754875838022,-400.0,0.00018857,2]
[378461972,1754875838031,-2028.85,0.00018857,2]
[378461973,1754875838040,-370.54978864,0.00018857,2]
[378461974,1754875838052,-32.17019216,0.00018857,2]
[378461975,1754875838063,-400.0,0.00018857,2]
[378461976,1754875838073,-759.72980784,0.00018857,2]
[378461977,1754875838163,-83.00019216,0.00018857,2]
[378461978,1754875838173,-347.33980784,0.00018857,2]
[378461979,1754875838205,-52.66019216,0.00018857,2]
[378461980,1754875838214,-400.0,0.00018857,2]
[378461981,1754875838223,-412.15314961,0.00018857,2]
[378461982,1754875838233,-387.68615769,0.00018857,2]
[378462126,1754875839995,-276.36803702,0.00018857,2]
[378462142,1754875840272,-738.9303,0.00018759,2]
[378462143,1754875840282,-1570.22580529,0.00018857,2]
[378462145,1754875840292,-400.0,0.00018857,2]
[378462147,1754875840301,-400.0,0.00018857,2]
[378462149,1754875840311,-453.16,0.00018857,2]
[378462151,1754875840320,-1190.29,0.00018857,2]
[378462153,1754875840329,-596.67,0.00018857,2]
[378462155,1754875840338,-509.2,0.00018857,2]
[378462157,1754875840348,-400.0,0.00018858,2]
[378462159,1754875840357,-400.0,0.00018858,2]
[378462160,1754875840367,-400.0,0.00018858,2]
[378462163,1754875840380,-515.85,0.00018858,2]
[378462165,1754875840389,-400.0,0.00018858,2]
[378462166,1754875840398,-400.0,0.00018858,2]
[378462169,1754875840407,-400.0,0.00018858,2]
[378462171,1754875840420,-400.0,0.00018858,2]
[378462173,1754875840429,-400.0,0.00018858,2]
[378462174,1754875840438,-400.0,0.00018858,2]
[378462177,1754875840449,-400.0,0.00018858,2]
[378462179,1754875840459,-476.53585369,0.00018858,2]
[378462180,1754875840468,-429.89,0.00018858,2]
[378462182,1754875840477,-1212.82,0.00018858,2]
[378462184,1754875840486,-400.0,0.00018858,2]
[378462186,1754875840495,-400.0,0.00018858,2]
[378462189,1754875840504,-400.0,0.00018858,2]
[378462190,1754875840514,-400.0,0.00018858,2]
[378462193,1754875840523,-400.0,0.00018858,2]
[378462194,1754875840532,-596.838666,0.00018858,2]
[378462196,1754875840542,-595.76,0.00018858,2]
[378462197,1754875840551,-400.0,0.00018858,2]
[378462199,1754875840560,-400.0,0.00018858,2]
[378462201,1754875840569,-592.07,0.00018858,2]
[378462203,1754875840579,-520.27758889,0.00018858,2]
[378462205,1754875840589,-400.0,0.00018858,2]
[378462207,1754875840598,-150.844158,0.00018858,2]
[378462209,1754875840607,-700.26,0.00018858,2]
[378462211,1754875840617,-880.6,0.00018858,2]
[378462213,1754875840627,-505.07,0.00018858,2]
[378462215,1754875840636,-354.367087,0.00018858,2]
[378462217,1754875840645,-612.494679,0.00018858,2]
[378462219,1754875840655,-583.6,0.00018858,2]
[378462221,1754875840664,-539.95,0.00018858,2]
[378462222,1754875840674,-536.92,0.00018858,2]
[378462224,1754875840683,-400.0,0.00018858,2]
[378462226,1754875840692,-820.92,0.00018858,2]
[378462228,1754875840703,-400.0,0.00018858,2]
[378462230,1754875840712,-468.58,0.00018858,2]
[378462232,1754875840721,-400.0,0.00018858,2]
[378462234,1754875840731,-400.0,0.00018858,2]
[378462235,1754875840741,-400.0,0.00018858,2]
[378462237,1754875840749,-1116.18,0.00018858,2]
[378462239,1754875840759,-197.94181642,0.00018858,2]
[378462241,1754875840768,-400.0,0.00018858,2]
[378462243,1754875840779,-813.04,0.00018858,2]
[378462245,1754875840788,-1081.67,0.00018858,2]
[378462247,1754875840797,-400.0,0.00018858,2]
[378462249,1754875840806,-1038.03,0.00018858,2]
[378462251,1754875840816,-959.43,0.00018858,2]
[378462253,1754875840825,-529.39,0.00018858,2]
[378462255,1754875840834,-2319.24,0.00018858,2]
[378462257,1754875840843,-400.0,0.00018858,2]
[378462259,1754875840852,-400.0,0.00018858,2]
[378462261,1754875840861,-470.7,0.00018858,2]
[378462263,1754875840871,-400.0,0.00018858,2]
[378462265,1754875840880,-717.24,0.00018858,2]
[378462266,1754875840888,-486.9,0.00018858,2]
[378462268,1754875840898,-496.62,0.00018858,2]
[378462270,1754875840907,-901.09,0.00018858,2]
[378462272,1754875840916,-400.0,0.00018858,2]
[378462274,1754875840925,-750.25,0.00018858,2]
[378462276,1754875840935,-1072.58,0.00018858,2]
[378462278,1754875840944,-400.0,0.00018858,2]
[378462280,1754875840953,-554.02,0.00018858,2]
[378462282,1754875840962,-400.0,0.00018858,2]
[378462284,1754875840972,-400.0,0.00018858,2]
[378462286,1754875840983,-1088.13,0.00018858,2]
[378462288,1754875840994,-740.73,0.00018858,2]
[378462290,1754875841003,-487.37,0.00018858,2]
[378462292,1754875841012,-990.02,0.00018858,2]
[378462294,1754875841022,-1228.5,0.00018858,2]
[378462296,1754875841031,-1250.06,0.00018858,2]
[378462298,1754875841041,-408.27,0.00018858,2]
[378462300,1754875841050,-400.0,0.00018858,2]
[378462302,1754875841059,-400.15,0.00018858,2]
[378462304,1754875841068,-665.14,0.00018858,2]
[378462306,1754875841078,-446.92,0.00018858,2]
[378462308,1754875841087,-1351.61,0.00018858,2]
[378462310,1754875841097,-534.77,0.00018858,2]
[378462312,1754875841106,-669.87,0.00018858,2]
[378462314,1754875841115,-903.31,0.00018858,2]
[378462316,1754875841124,-1477.98,0.00018858,2]
[378462318,1754875841134,-400.0,0.00018858,2]
[378462320,1754875841143,-2256.89,0.00018858,2]
[378462322,1754875841152,-205.95863964,0.00018858,2]
[378462324,1754875841161,-472.28,0.00018858,2]
[378462326,1754875841170,-1193.24,0.00018858,2]
[378462328,1754875841179,-400.0,0.00018858,2]
[378462330,1754875841188,-902.56,0.00018858,2]
[378462332,1754875841197,-569.12,0.00018858,2]
[378462334,1754875841206,-599.38,0.00018858,2]
[378462336,1754875841216,-400.0,0.00018858,2]
[378462337,1754875841224,-400.0,0.00018858,2]
[378462339,1754875841234,-1029.77,0.00018858,2]
[378462341,1754875841243,-776.48,0.00018858,2]
[378462343,1754875841252,-701.53,0.00018858,2]
[378462345,1754875841261,-400.0,0.00018858,2]
[378462347,1754875841271,-533.83,0.00018858,2]
[378462349,1754875841280,-713.36,0.00018858,2]
[378462351,1754875841290,-616.26,0.00018858,2]
[378462353,1754875841299,-1108.19,0.00018858,2]
[378462355,1754875841309,-400.0,0.00018858,2]
[378462358,1754875841319,-1022.95,0.00018858,2]
[378462359,1754875841328,-400.0,0.00018858,2]
[378462361,1754875841339,-4418.96,0.00018858,2]
[378462363,1754875841348,-1224.67,0.00018858,2]
[378462365,1754875841358,-919.94,0.00018858,2]
[378462368,1754875841372,-1696.13,0.00018858,2]
[378462369,1754875841381,-689.76,0.00018858,2]
[378462371,1754875841390,-747.35,0.00018858,2]
[378462373,1754875841401,-400.0,0.00018858,2]
[378462375,1754875841412,-912.71,0.00018858,2]
[378462377,1754875841421,-588.89,0.00018858,2]
[378462379,1754875841430,-761.06,0.00018858,2]
[378462381,1754875841440,-856.56,0.00018858,2]
[378462383,1754875841453,-1413.44,0.00018858,2]
[378462385,1754875841462,-1028.22,0.00018858,2]
[378462387,1754875841471,-400.0,0.00018858,2]
[378462389,1754875841481,-400.0,0.00018858,2]
[378462392,1754875841490,-1665.43,0.00018858,2]
[378462394,1754875841500,-1746.07,0.00018858,2]
[378462395,1754875841510,-400.0,0.00018858,2]
[378462397,1754875841519,-902.4,0.00018858,2]
[378462399,1754875841528,-400.0,0.00018858,2]
[378462401,1754875841537,-560.42,0.00018858,2]
[378462403,1754875841547,-1285.31,0.00018858,2]
[378462405,1754875841556,-400.0,0.00018858,2]
[378462407,1754875841566,-1356.52,0.00018858,2]
[378462409,1754875841575,-500.0,0.00018858,2]
[378462411,1754875841585,-1676.27,0.00018858,2]
[378462413,1754875841595,-684.85,0.00018858,2]
[378462415,1754875841605,-795.83,0.00018858,2]
[378462417,1754875841614,-2732.57,0.00018858,2]
[378462419,1754875841625,-1536.59,0.00018858,2]
[378462421,1754875841635,-975.13,0.00018858,2]
[378462423,1754875841644,-752.86,0.00018858,2]
[378462426,1754875841654,-1447.97,0.00018858,2]
[378462427,1754875841663,-807.55,0.00018858,2]
[378462430,1754875841672,-1738.9,0.00018858,2]
[378462432,1754875841683,-400.0,0.00018858,2]
[378462434,1754875841692,-1405.37,0.00018858,2]
[378462436,1754875841702,-758.29,0.00018858,2]
[378462438,1754875841711,-4528.96,0.00018858,2]
[378462440,1754875841721,-1476.87,0.00018858,2]
[378462442,1754875841730,-467.48,0.00018858,2]
[378462444,1754875841739,-642.8,0.00018858,2]
[378462446,1754875841748,-400.0,0.00018858,2]
[378462448,1754875841759,-471.03,0.00018858,2]
[378462449,1754875841768,-2502.58,0.00018858,2]
[378462451,1754875841778,-1858.79,0.00018858,2]
[378462454,1754875841787,-1715.62,0.00018858,2]
[378462456,1754875841797,-1775.28,0.00018858,2]
[378462458,1754875841806,-642.68,0.00018858,2]
[378462460,1754875841816,-1962.62,0.00018858,2]
[378462462,1754875841826,-526.21,0.00018858,2]
[378462463,1754875841835,-400.0,0.00018858,2]
[378462465,1754875841844,-1010.08,0.00018858,2]
[378462467,1754875841854,-982.65,0.00018858,2]
[378462470,1754875841864,-1769.69,0.00018858,2]
[378462471,1754875841874,-495.92,0.00018858,2]
[378462474,1754875841884,-738.11,0.00018858,2]
[378462475,1754875841894,-566.21,0.00018858,2]
[378462477,1754875841905,-404.37,0.00018858,2]
[378462480,1754875841915,-981.27,0.00018858,2]
[378462482,1754875841926,-1086.32,0.00018858,2]
[378462484,1754875841935,-603.84,0.00018858,2]
[378462486,1754875841945,-1222.31,0.00018858,2]
[378462488,1754875841954,-1163.79,0.00018858,2]
[378462490,1754875841963,-1547.09,0.00018858,2]
[378462492,1754875841973,-1599.08,0.00018858,2]
[378462494,1754875841982,-505.21072698,0.00018858,2]
[378462496,1754875841991,-1615.8,0.00018858,2]
[378462498,1754875842001,-1356.31,0.00018858,2]
[378462500,1754875842010,-400.0,0.00018858,2]
[378462502,1754875842019,-476.42,0.00018858,2]
[378462504,1754875842028,-1923.93,0.00018858,2]
[378462505,1754875842037,-1070.8,0.00018858,2]
[378462507,1754875842046,-1478.27,0.00018858,2]
[378462509,1754875842055,-2140.88,0.00018858,2]
[378462511,1754875842066,-733.85,0.00018858,2]
[378462513,1754875842075,-1007.63,0.00018858,2]
[378462515,1754875842084,-944.71,0.00018858,2]
[378462517,1754875842093,-592.9,0.00018858,2]
[378462519,1754875842102,-400.0,0.00018858,2]
[378462521,1754875842112,-581.61,0.00018858,2]
[378462523,1754875842121,-2470.52,0.00018858,2]
[378462525,1754875842131,-843.7,0.00018858,2]
[378462527,1754875842139,-400.0,0.00018858,2]
[378462529,1754875842148,-1017.0,0.00018858,2]
[378462531,1754875842158,-1135.21,0.00018858,2]
[378462533,1754875842167,-400.0,0.00018858,2]
[378462535,1754875842176,-400.0,0.00018858,2]
[378462538,1754875842185,-400.0,0.00018858,2]
[378462540,1754875842195,-3956.79,0.00018858,2]
[378462542,1754875842204,-485.83,0.00018858,2]
[378462543,1754875842213,-1113.54,0.00018858,2]
[378462545,1754875842222,-1212.16,0.00018858,2]
[378462547,1754875842231,-873.48,0.00018858,2]
[378462549,1754875842241,-761.08,0.00018858,2]
[378462552,1754875842251,-483.41,0.00018858,2]
[378462579,1754875842504,-1624.59,0.00018858,2]
[378462581,1754875842514,-848.18,0.00018858,2]